[Event "Late-Titled-Tuesday-Blitz-October-03-2023"]
[Site "Chess.com"]
[Date "2023.10.03"]
[Round "5"]
[White "Brown_Mamba24"]
[Black "victormago"]
[Result "0-1"]
[WhiteElo "2648"]
[BlackElo "2507"]
[TimeControl "180+1"]
[EndTime "14:53:21 PDT"]
[Termination "victormago won by resignation"]

1. d4 {[%clk 0:03:00.9]} 1... Nf6 {[%clk 0:02:59.5]} 2. c4 {[%clk 0:03:00.6]}
2... c5 {[%clk 0:02:59]} 3. d5 {[%clk 0:02:56.7]} 3... e6 {[%clk 0:02:59.2]} 4.
Nc3 {[%clk 0:02:56.5]} 4... exd5 {[%clk 0:02:59.3]} 5. cxd5 {[%clk 0:02:57.4]}
5... d6 {[%clk 0:02:59.9]} 6. Nf3 {[%clk 0:02:57.4]} 6... g6 {[%clk 0:02:59.8]}
7. h3 {[%clk 0:02:57.9]} 7... Bg7 {[%clk 0:02:59.6]} 8. Bf4 {[%clk 0:02:58.6]}
8... a6 {[%clk 0:02:58.7]} 9. a4 {[%clk 0:02:58.1]} 9... O-O {[%clk 0:02:57.8]}
10. e3 {[%clk 0:02:58.6]} 10... Qe7 {[%clk 0:02:55]} 11. Bd3 {[%clk 0:02:49.7]}
11... Nbd7 {[%clk 0:02:55]} 12. O-O {[%clk 0:02:46.7]} 12... Nh5 {[%clk
0:02:54.8]} 13. Bh2 {[%clk 0:02:45.5]} 13... f5 {[%clk 0:02:43]} 14. Re1 {[%clk
0:02:40.4]} 14... Ne5 {[%clk 0:02:33.3]} 15. Be2 {[%clk 0:02:15.6]} 15... Nxf3+
{[%clk 0:02:32.9]} 16. Bxf3 {[%clk 0:02:15.5]} 16... Nf6 {[%clk 0:02:33.6]} 17.
a5 {[%clk 0:02:06.9]} 17... Ne4 {[%clk 0:02:04.4]} 18. Ra3 {[%clk 0:01:41.1]}
18... Bd7 {[%clk 0:01:55]} 19. Re2 {[%clk 0:01:01.6]} 19... Nxc3 {[%clk
0:01:42.6]} 20. bxc3 {[%clk 0:01:00.8]} 20... Bb5 {[%clk 0:01:42.2]} 21. Rb2
{[%clk 0:00:58.6]} 21... Rac8 {[%clk 0:01:31.8]} 22. Be2 {[%clk 0:00:53]} 22...
c4 {[%clk 0:01:31.3]} 23. Rb4 {[%clk 0:00:45.4]} 23... Rc5 {[%clk 0:01:30.6]}
24. Ra2 {[%clk 0:00:30.5]} 24... Bxc3 {[%clk 0:01:26.3]} 25. Rb1 {[%clk
0:00:29.6]} 25... Be5 {[%clk 0:01:22.1]} 26. f4 {[%clk 0:00:27.8]} 26... Bf6
{[%clk 0:01:20.7]} 27. Kf1 {[%clk 0:00:28]} 27... Qxe3 {[%clk 0:01:17.6]} 28.
Bf3 {[%clk 0:00:28.2]} 28... c3+ {[%clk 0:01:16.2]} 29. Be2 {[%clk 0:00:27]}
29... c2 {[%clk 0:00:39.8]} 30. Rxc2 {[%clk 0:00:26.7]} 30... Ba4 {[%clk
0:00:40.3]} 31. Rbc1 {[%clk 0:00:18.8]} 31... Bxc2 {[%clk 0:00:36.6]} 32. Rxc2
{[%clk 0:00:19.1]} 32... Rfc8 {[%clk 0:00:36.6]} 33. Bd3 {[%clk 0:00:09.6]}
33... Rxc2 {[%clk 0:00:34.4]} 34. Bxc2 {[%clk 0:00:10.5]} 34... Bd4 {[%clk
0:00:34.2]} 0-1

[Event "Late-Titled-Tuesday-Blitz-October-03-2023"]
[Site "Chess.com"]
[Date "2023.10.03"]
[Round "5"]
[White "hellokostya"]
[Black "traack"]
[Result "0-1"]
[WhiteElo "2544"]
[BlackElo "2432"]
[TimeControl "180+1"]
[EndTime "14:53:21 PDT"]
[Termination "traack won by resignation"]

1. Nf3 {[%clk 0:03:00.9]} 1... Nf6 {[%clk 0:02:58.6]} 2. c4 {[%clk 0:03:01.1]}
2... e6 {[%clk 0:02:58.9]} 3. d4 {[%clk 0:02:59.6]} 3... d5 {[%clk 0:02:59.3]}
4. Nc3 {[%clk 0:02:59.3]} 4... Be7 {[%clk 0:02:58.3]} 5. Bf4 {[%clk 0:02:59.1]}
5... O-O {[%clk 0:02:57.3]} 6. e3 {[%clk 0:02:59.4]} 6... b6 {[%clk 0:02:56.4]}
7. Bd3 {[%clk 0:02:57.7]} 7... Bb7 {[%clk 0:02:56.1]} 8. O-O {[%clk 0:02:57.4]}
8... Nbd7 {[%clk 0:02:56.2]} 9. Qe2 {[%clk 0:02:55]} 9... c5 {[%clk 0:02:54.6]}
10. cxd5 {[%clk 0:02:51.5]} 10... Nxd5 {[%clk 0:02:54.3]} 11. Nxd5 {[%clk
0:02:50.6]} 11... Bxd5 {[%clk 0:02:53.8]} 12. Rfd1 {[%clk 0:02:23.7]} 12... cxd4
{[%clk 0:02:50.8]} 13. exd4 {[%clk 0:02:03.1]} 13... h6 {[%clk 0:02:36]} 14. Ne5
{[%clk 0:01:54.1]} 14... Nxe5 {[%clk 0:02:34.5]} 15. dxe5 {[%clk 0:01:51]} 15...
Bg5 {[%clk 0:02:20.1]} 16. Qg4 {[%clk 0:01:37.3]} 16... Bxf4 {[%clk 0:02:19]}
17. Qxf4 {[%clk 0:01:38.2]} 17... Qg5 {[%clk 0:02:15]} 18. Qxg5 {[%clk
0:01:33.8]} 18... hxg5 {[%clk 0:02:15.9]} 19. Ba6 {[%clk 0:01:32.5]} 19... Rfd8
{[%clk 0:02:10.5]} 20. Rd4 {[%clk 0:01:30.1]} 20... Kf8 {[%clk 0:01:55.7]} 21.
Rad1 {[%clk 0:01:27]} 21... Ke7 {[%clk 0:01:55.1]} 22. b3 {[%clk 0:01:25.3]}
22... f6 {[%clk 0:01:49.1]} 23. exf6+ {[%clk 0:01:23.7]} 23... gxf6 {[%clk
0:01:50]} 24. Rc1 {[%clk 0:01:17.4]} 24... Rd7 {[%clk 0:01:47.5]} 25. Bb5 {[%clk
0:01:13.8]} 25... Rb7 {[%clk 0:01:43.1]} 26. h4 {[%clk 0:01:05.1]} 26... a6
{[%clk 0:01:39.3]} 27. Be2 {[%clk 0:00:58.7]} 27... gxh4 {[%clk 0:01:37.8]} 28.
Rxh4 {[%clk 0:00:59.5]} 28... Rg8 {[%clk 0:01:36.2]} 29. f3 {[%clk 0:00:51.6]}
29... Kd6 {[%clk 0:01:35.7]} 30. Bxa6 {[%clk 0:00:47.1]} 30... Ra7 {[%clk
0:01:36.1]} 31. Ra4 {[%clk 0:00:36.6]} 31... Bc6 {[%clk 0:01:23.2]} 32. Rac4
{[%clk 0:00:26.5]} 32... Bxf3 {[%clk 0:01:17.1]} 33. Kf2 {[%clk 0:00:14.1]}
33... Bd5 {[%clk 0:01:15.2]} 34. Ra4 {[%clk 0:00:12.3]} 34... Rxg2+ {[%clk
0:01:15.3]} 35. Ke3 {[%clk 0:00:12.6]} 35... Rg3+ {[%clk 0:01:10.8]} 36. Kf2
{[%clk 0:00:11.2]} 36... Rf3+ {[%clk 0:01:09.8]} 37. Ke2 {[%clk 0:00:11.8]}
37... Rh7 {[%clk 0:01:05.9]} 38. Kd2 {[%clk 0:00:10.9]} 38... Rh2+ {[%clk
0:01:06.2]} 39. Be2 {[%clk 0:00:10.2]} 39... Rff2 {[%clk 0:01:04.7]} 40. Re1
{[%clk 0:00:09.4]} 40... Bf3 {[%clk 0:01:04]} 41. Rf4 {[%clk 0:00:03.7]} 41...
Rxe2+ {[%clk 0:00:58.8]} 42. Rxe2 {[%clk 0:00:03.9]} 42... Bxe2 {[%clk 0:00:51]}
0-1

[Event "Late-Titled-Tuesday-Blitz-October-03-2023"]
[Site "Chess.com"]
[Date "2023.10.03"]
[Round "5"]
[White "maxip32"]
[Black "Gogolev_Artemy"]
[Result "1-0"]
[WhiteElo "2548"]
[BlackElo "2399"]
[TimeControl "180+1"]
[EndTime "14:53:26 PDT"]
[Termination "maxip32 won on time"]

1. e4 {[%clk 0:03:00.9]} 1... c5 {[%clk 0:02:56.8]} 2. Nf3 {[%clk 0:03:00.6]}
2... Nc6 {[%clk 0:02:57.3]} 3. Bb5 {[%clk 0:03:00.1]} 3... e6 {[%clk 0:02:57.4]}
4. O-O {[%clk 0:02:59.1]} 4... Nge7 {[%clk 0:02:57.2]} 5. d4 {[%clk 0:02:56.8]}
5... cxd4 {[%clk 0:02:55.1]} 6. Nxd4 {[%clk 0:02:57.7]} 6... Qb6 {[%clk
0:02:55.2]} 7. Nxc6 {[%clk 0:02:52.4]} 7... bxc6 {[%clk 0:02:42.1]} 8. Bd3
{[%clk 0:02:51.9]} 8... Ng6 {[%clk 0:02:39]} 9. Nd2 {[%clk 0:02:50.7]} 9... Be7
{[%clk 0:02:33.6]} 10. Nc4 {[%clk 0:02:49]} 10... Qc7 {[%clk 0:02:33.4]} 11. f4
{[%clk 0:02:48.6]} 11... d5 {[%clk 0:02:19.3]} 12. Na3 {[%clk 0:02:33.4]} 12...
O-O {[%clk 0:02:01.4]} 13. e5 {[%clk 0:02:32.4]} 13... f6 {[%clk 0:01:52.1]} 14.
exf6 {[%clk 0:02:24.3]} 14... Bxf6 {[%clk 0:01:52.2]} 15. Kh1 {[%clk 0:02:21.4]}
15... e5 {[%clk 0:01:48]} 16. fxe5 {[%clk 0:01:56.3]} 16... Nxe5 {[%clk
0:01:35.1]} 17. Bf4 {[%clk 0:01:54.8]} 17... Qd8 {[%clk 0:01:35.7]} 18. Be2
{[%clk 0:01:52.3]} 18... Re8 {[%clk 0:01:28.3]} 19. c3 {[%clk 0:01:52.1]} 19...
Ng6 {[%clk 0:01:02.2]} 20. Bg3 {[%clk 0:01:47]} 20... Be5 {[%clk 0:01:02.8]} 21.
Bxe5 {[%clk 0:01:45.7]} 21... Rxe5 {[%clk 0:01:03.7]} 22. Nc2 {[%clk 0:01:44.7]}
22... Bd7 {[%clk 0:00:47.2]} 23. Nd4 {[%clk 0:01:37.5]} 23... Qg5 {[%clk
0:00:39.4]} 24. Nf3 {[%clk 0:01:37]} 24... Qe7 {[%clk 0:00:39]} 25. Nxe5 {[%clk
0:01:37.1]} 25... Nxe5 {[%clk 0:00:39.9]} 26. Qd2 {[%clk 0:01:34]} 26... Re8
{[%clk 0:00:35.8]} 27. Rae1 {[%clk 0:01:34.1]} 27... g6 {[%clk 0:00:25.2]} 28.
Qd4 {[%clk 0:01:31.3]} 28... Bf5 {[%clk 0:00:21]} 29. b4 {[%clk 0:01:08.9]}
29... Nd3 {[%clk 0:00:18.5]} 30. Bxd3 {[%clk 0:00:45.4]} 30... Qxe1 {[%clk
0:00:18.8]} 31. Qg1 {[%clk 0:00:45.5]} 31... Qe3 {[%clk 0:00:06.5]} 32. Bxf5
{[%clk 0:00:44.9]} 32... Qxg1+ {[%clk 0:00:04.6]} 33. Kxg1 {[%clk 0:00:45.8]}
33... gxf5 {[%clk 0:00:05.1]} 34. Rxf5 {[%clk 0:00:45.8]} 34... Re3 {[%clk
0:00:05.8]} 35. Rf3 {[%clk 0:00:42]} 35... Re2 {[%clk 0:00:05.1]} 36. Rf2 {[%clk
0:00:41.2]} 36... Re3 {[%clk 0:00:05.4]} 37. Rc2 {[%clk 0:00:40.5]} 37... Rd3
{[%clk 0:00:01.7]} 38. Kf2 {[%clk 0:00:40.4]} 1-0

[Event "Late-Titled-Tuesday-Blitz-October-03-2023"]
[Site "Chess.com"]
[Date "2023.10.03"]
[Round "5"]
[White "emeli_chess"]
[Black "elmusmolamas"]
[Result "0-1"]
[WhiteElo "2374"]
[BlackElo "2532"]
[TimeControl "180+1"]
[EndTime "14:53:26 PDT"]
[Termination "elmusmolamas won on time"]

1. d4 {[%clk 0:03:00.9]} 1... c5 {[%clk 0:03:00]} 2. d5 {[%clk 0:03:00]} 2... e5
{[%clk 0:03:00.7]} 3. e4 {[%clk 0:02:57.7]} 3... d6 {[%clk 0:03:01.3]} 4. Bb5+
{[%clk 0:02:56.5]} 4... Nd7 {[%clk 0:02:58]} 5. a4 {[%clk 0:02:54.4]} 5... Be7
{[%clk 0:02:58.6]} 6. Nc3 {[%clk 0:02:53.9]} 6... Bg5 {[%clk 0:02:52.8]} 7. Nf3
{[%clk 0:02:51.2]} 7... Bxc1 {[%clk 0:02:51.6]} 8. Qxc1 {[%clk 0:02:48.4]} 8...
Nf6 {[%clk 0:02:52.4]} 9. h3 {[%clk 0:02:45.6]} 9... O-O {[%clk 0:02:52.4]} 10.
O-O {[%clk 0:02:44.8]} 10... Nh5 {[%clk 0:02:51.5]} 11. Qg5 {[%clk 0:02:17.8]}
11... Ndf6 {[%clk 0:02:35.5]} 12. Ne2 {[%clk 0:01:51.7]} 12... h6 {[%clk
0:02:30.1]} 13. Qe3 {[%clk 0:01:50.6]} 13... Nh7 {[%clk 0:02:18.8]} 14. g4
{[%clk 0:01:43.8]} 14... N5f6 {[%clk 0:02:12.7]} 15. Ng3 {[%clk 0:01:43.5]}
15... a6 {[%clk 0:02:03.9]} 16. Bd3 {[%clk 0:01:40.3]} 16... Rb8 {[%clk
0:01:53.9]} 17. Nf5 {[%clk 0:01:38.1]} 17... Bxf5 {[%clk 0:01:51.5]} 18. gxf5
{[%clk 0:01:38.2]} 18... Nh5 {[%clk 0:01:49.1]} 19. Kh2 {[%clk 0:01:27.7]} 19...
Nf4 {[%clk 0:01:35.7]} 20. Rg1 {[%clk 0:01:25.8]} 20... Kh8 {[%clk 0:01:31]} 21.
Rg4 {[%clk 0:01:23.1]} 21... Nf6 {[%clk 0:01:19.8]} 22. Rxf4 {[%clk 0:01:16.1]}
22... exf4 {[%clk 0:01:20.7]} 23. Qxf4 {[%clk 0:01:16.4]} 23... Qe7 {[%clk
0:01:15]} 24. Rg1 {[%clk 0:01:12.5]} 24... Nd7 {[%clk 0:01:12.4]} 25. Qg3 {[%clk
0:00:48.3]} 25... Qf6 {[%clk 0:01:07.1]} 26. Nh4 {[%clk 0:00:42.4]} 26... Rg8
{[%clk 0:01:02.5]} 27. c3 {[%clk 0:00:34.2]} 27... b5 {[%clk 0:00:59.9]} 28. a5
{[%clk 0:00:18.1]} 28... Ne5 {[%clk 0:00:51.2]} 29. Be2 {[%clk 0:00:14]} 29...
Rbe8 {[%clk 0:00:51.9]} 30. f4 {[%clk 0:00:13.8]} 30... Nd7 {[%clk 0:00:47.9]}
31. Bd3 {[%clk 0:00:12.7]} 31... c4 {[%clk 0:00:48.5]} 32. Bc2 {[%clk
0:00:12.7]} 32... Nc5 {[%clk 0:00:49.2]} 33. Re1 {[%clk 0:00:11]} 33... Nd3
{[%clk 0:00:47]} 34. Bxd3 {[%clk 0:00:10.5]} 34... cxd3 {[%clk 0:00:47.9]} 35.
e5 {[%clk 0:00:10.7]} 35... Qd8 {[%clk 0:00:42.8]} 36. Ng2 {[%clk 0:00:04.2]}
36... dxe5 {[%clk 0:00:39.8]} 37. fxe5 {[%clk 0:00:03.4]} 37... Qxd5 {[%clk
0:00:40.4]} 0-1

[Event "Late-Titled-Tuesday-Blitz-October-03-2023"]
[Site "Chess.com"]
[Date "2023.10.03"]
[Round "5"]
[White "Eloist"]
[Black "nitpicker"]
[Result "1-0"]
[WhiteElo "2439"]
[BlackElo "2229"]
[TimeControl "180+1"]
[EndTime "14:53:26 PDT"]
[Termination "Eloist won on time"]

1. e4 {[%clk 0:03:00.9]} 1... c5 {[%clk 0:02:59.2]} 2. Nf3 {[%clk 0:03:00.6]}
2... d6 {[%clk 0:02:58.4]} 3. Bb5+ {[%clk 0:03:00.5]} 3... Nc6 {[%clk
0:02:57.7]} 4. O-O {[%clk 0:02:59.8]} 4... Bd7 {[%clk 0:02:56.6]} 5. Re1 {[%clk
0:02:57.5]} 5... e6 {[%clk 0:02:50.2]} 6. c3 {[%clk 0:02:55]} 6... g5 {[%clk
0:02:50.2]} 7. h3 {[%clk 0:02:21.9]} 7... h5 {[%clk 0:02:49.2]} 8. Nh2 {[%clk
0:02:19.1]} 8... g4 {[%clk 0:02:36.5]} 9. hxg4 {[%clk 0:02:13.5]} 9... hxg4
{[%clk 0:02:28]} 10. Qxg4 {[%clk 0:02:07.9]} 10... Nf6 {[%clk 0:02:22.3]} 11.
Qg3 {[%clk 0:02:00.6]} 11... Be7 {[%clk 0:02:15.8]} 12. d3 {[%clk 0:01:43.6]}
12... Qc7 {[%clk 0:02:01.5]} 13. Bg5 {[%clk 0:01:24.8]} 13... O-O-O {[%clk
0:01:53.6]} 14. Nd2 {[%clk 0:01:08.3]} 14... Rdg8 {[%clk 0:01:51.2]} 15. Qe3
{[%clk 0:01:04.8]} 15... Ng4 {[%clk 0:01:07.4]} 16. Nxg4 {[%clk 0:01:01.7]}
16... Rxg5 {[%clk 0:01:03.8]} 17. Nh2 {[%clk 0:00:37.9]} 17... Ne5 {[%clk
0:00:54.6]} 18. Bxd7+ {[%clk 0:00:33.5]} 18... Kxd7 {[%clk 0:00:48.2]} 19. Ndf3
{[%clk 0:00:31.4]} 19... Rgh5 {[%clk 0:00:44.1]} 20. g3 {[%clk 0:00:22]} 20...
Rxh2 {[%clk 0:00:34.2]} 21. Nxh2 {[%clk 0:00:20.6]} 21... Rxh2 {[%clk
0:00:33.2]} 22. d4 {[%clk 0:00:18.9]} 22... Ng4 {[%clk 0:00:15.9]} 23. Qf3
{[%clk 0:00:19.2]} 23... f5 {[%clk 0:00:14.5]} 24. exf5 {[%clk 0:00:19.5]} 24...
Qc6 {[%clk 0:00:08.1]} 25. fxe6+ {[%clk 0:00:19.4]} 25... Kc7 {[%clk 0:00:07.9]}
26. d5 {[%clk 0:00:19.7]} 26... Qb5 {[%clk 0:00:06.3]} 27. Qxg4 {[%clk
0:00:19.8]} 27... Qxb2 {[%clk 0:00:05.2]} 28. Kxh2 {[%clk 0:00:19.1]} 28...
Qxf2+ {[%clk 0:00:04.6]} 29. Kh1 {[%clk 0:00:18.7]} 1-0

[Event "Late-Titled-Tuesday-Blitz-October-03-2023"]
[Site "Chess.com"]
[Date "2023.10.03"]
[Round "5"]
[White "cukus"]
[Black "JohnWhite1952"]
[Result "0-1"]
[WhiteElo "2345"]
[BlackElo "2080"]
[TimeControl "180+1"]
[EndTime "14:53:32 PDT"]
[Termination "JohnWhite1952 won on time"]

1. d4 {[%clk 0:03:00.9]} 1... Nf6 {[%clk 0:02:58.9]} 2. Nf3 {[%clk 0:03:00.9]}
2... g6 {[%clk 0:02:57.4]} 3. Bf4 {[%clk 0:03:01]} 3... d6 {[%clk 0:02:56.5]} 4.
e3 {[%clk 0:03:01.4]} 4... Bg7 {[%clk 0:02:55.2]} 5. h3 {[%clk 0:02:59.5]} 5...
O-O {[%clk 0:02:53.8]} 6. c4 {[%clk 0:02:59.1]} 6... c5 {[%clk 0:02:52.3]} 7.
Nc3 {[%clk 0:02:54.1]} 7... a6 {[%clk 0:02:49.7]} 8. Be2 {[%clk 0:02:53.6]} 8...
Nc6 {[%clk 0:02:48.6]} 9. O-O {[%clk 0:02:53]} 9... cxd4 {[%clk 0:02:47.3]} 10.
exd4 {[%clk 0:02:52.3]} 10... d5 {[%clk 0:02:45.9]} 11. Re1 {[%clk 0:02:36.2]}
11... dxc4 {[%clk 0:02:32.4]} 12. Bxc4 {[%clk 0:02:33.9]} 12... b5 {[%clk
0:02:24.7]} 13. Bb3 {[%clk 0:02:26.2]} 13... Bb7 {[%clk 0:02:24.2]} 14. Rc1
{[%clk 0:02:25.4]} 14... Na5 {[%clk 0:02:06.4]} 15. Be5 {[%clk 0:02:16.6]} 15...
Nxb3 {[%clk 0:02:02.1]} 16. axb3 {[%clk 0:02:16.3]} 16... Nd5 {[%clk 0:01:54.2]}
17. Ne4 {[%clk 0:02:14.2]} 17... Rc8 {[%clk 0:01:38.1]} 18. Nc5 {[%clk
0:02:12.9]} 18... Bxe5 {[%clk 0:01:05.4]} 19. Nxe5 {[%clk 0:02:01.3]} 19... Qc7
{[%clk 0:00:41.9]} 20. Qd2 {[%clk 0:01:53.8]} 20... e6 {[%clk 0:00:37.1]} 21.
Nxe6 {[%clk 0:01:16.1]} 21... fxe6 {[%clk 0:00:23.7]} 22. Rxc7 {[%clk
0:01:12.3]} 22... Rxc7 {[%clk 0:00:24.6]} 23. Ng4 {[%clk 0:01:09.2]} 23... Nf4
{[%clk 0:00:13.3]} 0-1

[Event "Late-Titled-Tuesday-Blitz-October-03-2023"]
[Site "Chess.com"]
[Date "2023.10.03"]
[Round "5"]
[White "chosenpr"]
[Black "Cambek64"]
[Result "0-1"]
[WhiteElo "2238"]
[BlackElo "2450"]
[TimeControl "180+1"]
[EndTime "14:53:33 PDT"]
[Termination "Cambek64 won by resignation"]

1. e4 {[%clk 0:03:00.9]} 1... e6 {[%clk 0:02:51.6]} 2. d4 {[%clk 0:03:00.5]}
2... d5 {[%clk 0:02:51.8]} 3. Nd2 {[%clk 0:03:01.1]} 3... Nc6 {[%clk 0:02:51.2]}
4. e5 {[%clk 0:02:55.9]} 4... Nxd4 {[%clk 0:02:48.8]} 5. f4 {[%clk 0:02:54.3]}
5... c5 {[%clk 0:02:47.6]} 6. Ngf3 {[%clk 0:02:54.5]} 6... Nxf3+ {[%clk
0:02:46.2]} 7. Nxf3 {[%clk 0:02:55.4]} 7... Ne7 {[%clk 0:02:45.5]} 8. Be2 {[%clk
0:02:52.8]} 8... Nf5 {[%clk 0:02:45.4]} 9. O-O {[%clk 0:02:52.3]} 9... h5 {[%clk
0:02:42.2]} 10. c3 {[%clk 0:02:51]} 10... c4 {[%clk 0:02:42.1]} 11. Kh1 {[%clk
0:02:48.3]} 11... Bc5 {[%clk 0:02:39.8]} 12. Nd4 {[%clk 0:02:48.2]} 12... g6
{[%clk 0:02:30.4]} 13. Nxf5 {[%clk 0:02:43.9]} 13... gxf5 {[%clk 0:02:30.7]} 14.
Rf3 {[%clk 0:02:36]} 14... Bd7 {[%clk 0:02:30.2]} 15. Rh3 {[%clk 0:02:35.9]}
15... h4 {[%clk 0:02:27.8]} 16. b4 {[%clk 0:02:29.2]} 16... Bb6 {[%clk
0:02:15.8]} 17. a4 {[%clk 0:02:26.7]} 17... a5 {[%clk 0:02:16.2]} 18. b5 {[%clk
0:02:27.1]} 18... Bc5 {[%clk 0:02:15.4]} 19. g4 {[%clk 0:02:09.4]} 19... fxg4
{[%clk 0:02:12.1]} 20. Bxg4 {[%clk 0:02:08.2]} 20... Qe7 {[%clk 0:01:56.8]} 21.
Be3 {[%clk 0:02:03.7]} 21... O-O-O {[%clk 0:01:55.8]} 22. Qe1 {[%clk 0:01:56.9]}
22... Rdg8 {[%clk 0:01:50.1]} 23. Bf3 {[%clk 0:01:55.2]} 23... b6 {[%clk
0:01:42.2]} 24. Qf2 {[%clk 0:01:51.1]} 24... Kc7 {[%clk 0:01:40.8]} 25. Rg1
{[%clk 0:01:45.8]} 25... Rxg1+ {[%clk 0:01:33.8]} 26. Qxg1 {[%clk 0:01:45.7]}
26... Bxe3 {[%clk 0:01:32.9]} 27. Qxe3 {[%clk 0:01:45.8]} 27... Rg8 {[%clk
0:01:32.9]} 28. f5 {[%clk 0:01:40.3]} 28... Qa3 {[%clk 0:01:29.7]} 29. Qe1
{[%clk 0:01:22.1]} 29... Qxa4 {[%clk 0:01:26.9]} 30. fxe6 {[%clk 0:01:18.2]}
30... fxe6 {[%clk 0:01:21.8]} 31. Rxh4 {[%clk 0:01:18.3]} 31... Qxb5 {[%clk
0:01:20.8]} 32. Rh7 {[%clk 0:01:16.7]} 32... Qc5 {[%clk 0:01:18]} 33. Bh5 {[%clk
0:01:04.7]} 33... Kc8 {[%clk 0:01:08.2]} 34. Bf7 {[%clk 0:01:01.5]} 34... Rg5
{[%clk 0:01:03]} 35. h4 {[%clk 0:00:56.3]} 35... Rf5 {[%clk 0:00:41]} 36. Rh8+
{[%clk 0:00:56.1]} 36... Kc7 {[%clk 0:00:40]} 37. Bg6 {[%clk 0:00:56.7]} 37...
Rf3 {[%clk 0:00:38.7]} 38. Kg2 {[%clk 0:00:54.9]} 38... Re3 {[%clk 0:00:37.7]}
39. Qf2 {[%clk 0:00:45.2]} 39... d4 {[%clk 0:00:37.7]} 40. cxd4 {[%clk
0:00:41.1]} 40... Qxd4 {[%clk 0:00:33.4]} 41. Rh7 {[%clk 0:00:35.1]} 41... Qg4+
{[%clk 0:00:31.1]} 42. Kf1 {[%clk 0:00:25.8]} 42... Rf3 {[%clk 0:00:30.7]} 0-1

[Event "Late-Titled-Tuesday-Blitz-October-03-2023"]
[Site "Chess.com"]
[Date "2023.10.03"]
[Round "5"]
[White "Let_it_be_1"]
[Black "as9killer2"]
[Result "0-1"]
[WhiteElo "2623"]
[BlackElo "2497"]
[TimeControl "180+1"]
[EndTime "14:53:34 PDT"]
[Termination "as9killer2 won by resignation"]

1. e4 {[%clk 0:02:56.4]} 1... d6 {[%clk 0:02:57.1]} 2. d4 {[%clk 0:02:55.7]}
2... Nf6 {[%clk 0:02:57.6]} 3. Nc3 {[%clk 0:02:53.3]} 3... e5 {[%clk 0:02:58.5]}
4. Nf3 {[%clk 0:02:53.2]} 4... Nbd7 {[%clk 0:02:58.5]} 5. Bc4 {[%clk 0:02:52.9]}
5... h6 {[%clk 0:02:59]} 6. O-O {[%clk 0:02:46]} 6... Be7 {[%clk 0:02:58.1]} 7.
a4 {[%clk 0:02:46]} 7... c6 {[%clk 0:02:58.6]} 8. Ba2 {[%clk 0:02:45.4]} 8...
Qc7 {[%clk 0:02:59.1]} 9. Qe2 {[%clk 0:02:45.8]} 9... Nf8 {[%clk 0:02:59.6]} 10.
Rd1 {[%clk 0:02:46.4]} 10... g5 {[%clk 0:02:59.4]} 11. Qc4 {[%clk 0:02:35.3]}
11... Ne6 {[%clk 0:02:58.9]} 12. d5 {[%clk 0:02:15.4]} 12... cxd5 {[%clk
0:02:57.8]} 13. Nxd5 {[%clk 0:02:14.6]} 13... Qxc4 {[%clk 0:02:36.8]} 14. Nxf6+
{[%clk 0:02:13.8]} 14... Bxf6 {[%clk 0:02:36.8]} 15. Bxc4 {[%clk 0:02:14.7]}
15... Nc5 {[%clk 0:02:33.2]} 16. Rxd6 {[%clk 0:02:01.7]} 16... Nxe4 {[%clk
0:02:32.5]} 17. Bb5+ {[%clk 0:01:52.8]} 17... Ke7 {[%clk 0:02:29.2]} 18. Rd1
{[%clk 0:01:52.7]} 18... g4 {[%clk 0:02:25.9]} 19. Nd2 {[%clk 0:01:50.2]} 19...
Rd8 {[%clk 0:02:25.8]} 20. Be2 {[%clk 0:01:46.4]} 20... Nc5 {[%clk 0:02:07.5]}
21. b3 {[%clk 0:01:40.3]} 21... Bf5 {[%clk 0:02:06.9]} 22. Ba3 {[%clk
0:01:38.9]} 22... b6 {[%clk 0:02:07.1]} 23. Rac1 {[%clk 0:01:32.4]} 23... Bg5
{[%clk 0:02:03.8]} 24. Bb4 {[%clk 0:01:25.3]} 24... a5 {[%clk 0:01:58.6]} 25.
Bc3 {[%clk 0:01:24.7]} 25... f6 {[%clk 0:01:46.6]} 26. f3 {[%clk 0:01:12.3]}
26... h5 {[%clk 0:01:45.8]} 27. Kf2 {[%clk 0:01:10.8]} 27... Rac8 {[%clk
0:01:42]} 28. Bc4 {[%clk 0:01:09.1]} 28... Nxa4 {[%clk 0:01:25.9]} 29. bxa4
{[%clk 0:01:07.3]} 29... Bxd2 {[%clk 0:01:25.5]} 30. Bxd2 {[%clk 0:01:05.5]}
30... Rxc4 {[%clk 0:01:24.7]} 31. c3 {[%clk 0:00:59.7]} 31... Rxa4 {[%clk
0:01:23.4]} 32. Be3 {[%clk 0:00:59.1]} 32... Ra2+ {[%clk 0:01:23.2]} 33. Kg3
{[%clk 0:00:54.8]} 33... gxf3 {[%clk 0:01:21.2]} 34. Rxd8 {[%clk 0:00:54.6]}
34... Kxd8 {[%clk 0:01:16]} 35. Bxb6+ {[%clk 0:00:54.1]} 35... Ke7 {[%clk
0:01:15.9]} 36. gxf3 {[%clk 0:00:55]} 36... a4 {[%clk 0:01:16.1]} 37. c4 {[%clk
0:00:53.8]} 37... Bd7 {[%clk 0:01:14]} 38. Rd1 {[%clk 0:00:50.2]} 38... Rc2
{[%clk 0:01:09.7]} 39. c5 {[%clk 0:00:46.1]} 39... a3 {[%clk 0:01:04.8]} 40. Bc7
{[%clk 0:00:37.9]} 40... a2 {[%clk 0:01:01.9]} 41. Bd6+ {[%clk 0:00:37.8]} 41...
Ke8 {[%clk 0:01:00.8]} 42. f4 {[%clk 0:00:37.5]} 42... Rb2 {[%clk 0:00:42.4]}
43. Ra1 {[%clk 0:00:34.8]} 43... Be6 {[%clk 0:00:41.8]} 44. f5 {[%clk
0:00:29.8]} 44... Bf7 {[%clk 0:00:36.1]} 45. c6 {[%clk 0:00:27.7]} 45... Rb1
{[%clk 0:00:36.4]} 46. c7 {[%clk 0:00:27.4]} 46... Kd7 {[%clk 0:00:36.5]} 0-1